Workbook

Sheet Factory Input Fields
B1: Labour Minute and Product Cost Calcultor North-Macedonia
B2: Instructions and input fields, calculation and comparison of labour minute values
B3: https://api.fairwear.org/wp-content/uploads/2020/06/Guidance-for-Use-of-the-Fair-Wear-Labour-and-Minute-and-Product-Costing-Calculator-Final.pdf
B5: The yellow fields in the file are your input fields, where you should insert the actual information based on your factory
G7: Factory Name (optional)
G8: Responsible staff (optional)
B9: Step | C9: Value
B10: 1) | C10: 61.49 | D10: Insert actual MKD-EUR foreign exchange rate or foreign exchange rate you are using for your calculations.
B11: workforce
B12: 2) | D12: Total number of production workers in the factory.
B13: 3) | D13: Insert total number of sewing operators in the factory, which represents: | H13: =IFERROR(C13/C12,0) -> 0 | I13: of the workforce.
B14: paid leave
C15: 16 | D15: Total number of paid public holiday days per year when the factory is closed and workers are paid.
C16: 20 | D16: Total number of paid annual leave days per year.
C17: =SUM(C15:C16) -> 36 | D17: Total number of paid leave days taken annually per worker.
B18: overtime
B19: 4) | D19: Insert the average weekly Overtime Hours of your factory.
B20: capacity minutes
C21: =40*4.33*60-((C17/12*8*60))+C19*4.33*60-((C17/12*C19/6)*60) -> 8952 | D21: Total capacity minutes per worker/month, based on regular (40 h/w) and overtime hours (C19) and adjusted for the total average number of paid leave taken annually per worker (C17).
C22: =C13*C21 -> 0 | D22: Total number of monthly sewing minutes (number of sewing operators x (40 + weekly OT hours) x 4.33 x 60) MINUS average monthly number of minutes on days not worked (i.e. paid public leave).
B23: paid benefits
B24: 5) | D24: Please insert the total amount paid for K15 Bonus paid in MKD per YEAR. K15 Annual Bonus for Holliday (in 2018 MKD 9.610). This bonus should be 40% of the average net wage of the last 3 month of the year.
B25: 6) | D25: Please insert the total amount of 13th salaries you paid for OT in MKD per YEAR. By labour Macedonian labour law, if a workers total OT hous exeeds 150h/year the employer need to pay a 13th Salary as a bonus.
B26: 7) | D26: Insert the total amount paid in attendance bonuses in MKD per MONTH.
B27: 8) | D27: Insert the total amount paid in productivity bonuses in MKD per month.
B28: 9) | D28: Insert the total amount paid in seniority bonuses in MKD per MONTH.
B29: 10) | D29: Insert the total amount paid in skills bonuses in MKD per MONTH.
B30: 11) | D30: Insert the total amount paid in additional bonuses in MKD per MONTH.
B31: employer on-costs
B32: 12) | D32: Insert the total amount in maternity benefits paid in MKD per YEAR. As per law, workers are entitled to 8 weeks before and 8 weeks after birth.
B33: 13) | D33: Insert the total amount paid in severence pay in MKD per YEAR.
B34: 14) | D34: Insert the total amount paid in any additional labour related on-costs paid in MKD per YEAR.
C36: 14500 | D36: Current Legal Minimum Wage 2019.
B37: 15) | C37: 32671 | D37: If applicable, insert the Target Wage Benchmark (Net), e.g. new NMW, CBA, or LW.
B39: Wage | C39: Description | E39: Labour Cost avg. worker | F39: Capacity Minutes | G39: Labour Minute Value (MKD) | H39: Labour Minute Value (EUR) | I39: Difference (absolute) | J39: Increment (in%)
B40: ='Labour Minute Value Macedonia'!E10 -> 21106.69333 | C40: Current Minimun Wage (Gross) | E40: ='Labour Minute Value Macedonia'!E28 -> 21106.69333 | F40: ='Labour Minute Value Macedonia'!E29 -> 8952 | G40: =E40/F40 -> 2.357762884 | H40: =G40/C10 -> 0.03834384263
B41: ='Labour Minute Value Macedonia'!H10 -> 49148.07958 | C41: Wage Benchmark (Gross) (New Minimim Wage, CBA or Target Wage) | E41: ='Labour Minute Value Macedonia'!H28 -> 49148.07958 | F41: =F40 -> 8952 | G41: =E41/F41 -> 5.490178684 | H41: =G41/C10 -> 0.08928571612 | I41: =H41-H40 -> 0.05094187349 | J41: =IFERROR((H41-H40)/H40,0) -> 1.328554208
B43: Monthly Operational Expenses in the Factory
C44: in Macedonian Dinnar | D44: in EUR | E44: per minute | F44: (operational expenses in EUR divided by the total monthly sewing minutes (C22)
B45: 16) | D45: =C45/C10 -> 0 | E45: =IFERROR(D45/C22,0) -> 0 | F45: Insert the total amount paid for Direct Labour (i.e. sewing operators) per month in MKD.
B46: 17) | D46: =C46/C10 -> 0 | E46: =IFERROR(D46/C22,0) -> 0 | F46: Insert the total amount paid for Indirect Labour (all other labour costs besides sewing, e.g. cutting, QC, maintainance, security, cleaning, office staff etc.) per month in MKD.
C47: =SUM(C45:C46) -> 0 | D47: =SUM(D45:D46) -> 0 | E47: =SUM(E45:E46) -> 0 | F47: Total labour costs per month in MKD / Labour Minute Costs (calculated by dividing with sewing capacity minutes: C22)
B48: 18) | D48: =C48/'Labour Minute Value Macedonia'!B5 -> 0 | E48: =IFERROR(D48/C22,0) -> 0 | F48: Insert the average overhead costs in the factory: rent, fuel, electricity, training, interest payments, depreciation on building, safety measures, etc. per month in MKD.
B49: 19) | D49: =C49/C10 -> 0 | E49: =IFERROR(D49/C22,0) -> 0 | F49: If applicable, Insert the total additional costs per month for Covid-19 measures (e.g. face masks, desinfectants, temperature scanning, etc).
C50: =SUM(C47:C49) -> 0 | D50: =SUM(D47:D49) -> 0 | E50: =SUM(E47:E49) -> 0 | F50: Total factory expenses per month in MKD / working minute costs (which can be compared with the working minute costs based on prevailing min. wage as a plausibility check).
C52: =IFERROR(C45/C47,0) -> 0 | D52: Based on the above step 16, total percentage paid for Direct Labour (i.e. sewing).
C53: =IFERROR(C46/C47,0) -> 0 | D53: Based on above step 17, total percentage paid for Indirect Labour (all other labour costs besides sewing, e.g. cutting, QC, maintenance, security, cleaning, office staff etc).
B55: Once you have inserted all above you should get following information:
B57: Wage (month) | C57: Description | E57: Direct Labour (A) | F57: Indirect Labour (B) | G57: Factory Labour Minute Value (C) | H57: Overhead (D) | I57: Total Working Minute Cost (C+D) | J57: Increment (in%)
E58: =C52 -> 0 | F58: =C53 -> 0 | G58: A+B
B59: =B40 -> 21106.69333 | C59: Factory Labour/Working Minute Value (based on Legal Minimum Wage) | E59: =H40 -> 0.03834384263 | F59: =IFERROR(G59*C53,0) -> 0 | G59: =IFERROR(E59/C52,0) -> 0 | H59: =E48+E49 -> 0 | I59: =SUM(G59:H59) -> 0
B60: =B41 -> 49148.07958 | C60: Factory Labour/Working Minute Value (based on target wage) | E60: =H41 -> 0.08928571612 | F60: =IFERROR(G60*C53,0) -> 0 | G60: =IFERROR(E60/C52,0) -> 0 | H60: =E48+E49 -> 0 | I60: =SUM(G60:H60) -> 0 | J60: =IFERROR((I60-I59)/I59,0) -> 0

Sheet Product Style Costing
B1: Product Style Costing Calculator - North-Macedonia
B2: Instructions and input fields, calculation and comparison of labour minute values
B3: https://api.fairwear.org/wp-content/uploads/2020/06/Guidance-for-Use-of-the-Fair-Wear-Labour-and-Minute-and-Product-Costing-Calculator-Final.pdf
B5: The yellow fields in the file are your input fields, where you should insert the actual information based on your factory
H7: Brand Name
G8: Factory Name
G9: Responsible staff (optional)
B11: From the Worksheet 'Factory Input Fields', you should get following information:
B13: Wage (month) | C13: Description | E13: Direct Labour (A) | F13: Indirect Labour (B) | G13: Factory Labour Minute Value (C) | H13: Overhead (D) | I13: Total Working Minute Cost (C+D) | J13: Increment (in%)
E14: ='Factory Input Fields'!$E$58 -> 0 | F14: ='Factory Input Fields'!$E$58 -> 0 | G14: A+B
B15: ='Factory Input Fields'!$B$59 -> 21106.69333 | C15: Factory Labour/Working Minute Value (based on Legal Minimum Wage) | E15: ='Factory Input Fields'!E59 -> 0.03834384263 | F15: ='Factory Input Fields'!F59 -> 0 | G15: ='Factory Input Fields'!G59 -> 0 | H15: ='Factory Input Fields'!$H$59 -> 0 | I15: =SUM(G15:H15) -> 0
B16: ='Factory Input Fields'!$B$60 -> 49148.07958 | C16: Factory Labour/Working Minute Value (based on target wage) | E16: ='Factory Input Fields'!E60 -> 0.08928571612 | F16: ='Factory Input Fields'!F60 -> 0 | G16: ='Factory Input Fields'!G60 -> 0 | H16: ='Factory Input Fields'!$H$60 -> 0 | I16: =SUM(G16:H16) -> 0 | J16: =IFERROR((I16-I15)/I15,0) -> 0
B18: Calculating the cost for a product style
C20: Items provided by the factory | E20: Details / Calculations | G20: Notes
B21: 1) | C21: Style Name / Number | G21: Style name or number of the Product
B22: 2) | C22: Standard Allowed Minutes | G22: Standard Allowed (sewing) Minutes of the style you want to calculate per piece.
B23: 3) | C23: Efficiency Percentage | G23: One could adjust this % to calculate the impact of Covid-19 on labour (and product) costs due to possible efficiency loss.
C24: Actual number of sewing minutes for style | E24: =IFERROR(E22/E23,0) -> 0 | G24: Note: if you don't know the SAM and efficiency percentage, simply indicate the actual labour minutes under 2, and 100% efficiency under 3.
B25: 4) | C25: Fabric | G25: Fabric costs per piece (incl. wastage %) in EUR
B26: 5) | C26: Accessories | G26: Costs for accessories (buttons, zippers, etc) per piece in EUR
B27: 6) | C27: Polybag, packaging, labelling | G27: Total amount per piece for polybag, packaging, hangtag
C28: Total Material Costs | E28: =SUM(E25:G27) -> 0
B29: Total CM Costs | C29: Labour Cost | E29: at LMW | F29: at Target Wage | G29: Factory labour minute value x SAM / efficiency %
C30: Direct | D30: =E14 -> 0 | E30: =E24*E15 -> 0 | F30: =E24*E16 -> 0
C31: Indirect | D31: =F14 -> 0 | E31: =E24*F15 -> 0 | F31: =E24*F16 -> 0
C32: Total labour cost | E32: =SUM(E30:E31) -> 0 | F32: =SUM(F30:F31) -> 0
C33: Overhead Cost (electricity, fuel ..) | E33: =E24*H15 -> 0 | G33: Overhead costs per minute (H15) x minutes spent on style (step 2-3).
B34: 7) | C34: Outsourced processes | G34: If applicable, amount paid per piece for outsourced processes (e.g. embroidery, washing, printing) in EUR
B35: 8) | C35: Logistic costs (inbound-outbound) | G35: Cost for logistics (inbound and out-bound) calculated per piece in EUR
B36: 9) | C36: Import tax and duties | G36: Cost for import tax and duties calculated per piece in EUR
C37: Total Garment Manufacturing Cost | E37: =E25+E26+E35+E36+E32+E34+E27+E33 -> 0 | F37: =E25+E26+E35+E36+F32+E34+E27+E33 -> 0
B38: 10) | C38: Profit Margin | E38: =D38*E37 -> 0 | F38: =D38*F37 -> 0 | G38: Insert your profit margin.
B39: 11) | C39: Buying House Commission | E39: =E37*D39 -> 0 | F39: =F37*D39 -> 0 | G39: If applicable, insert the buying houses commission %
C40: Factory Selling Price | E40: =SUM(E37:E39) -> 0 | F40: =SUM(F37:F39) -> 0
C41: % increase | F41: =IFERROR((F40-E40)/E40,0) -> 0
B43: 12) | D43: CHECK: insert the FOB price you receive from the buyer (in EUR). | I43: Date:
B44: 13) | D44: Insert the order size (# pieces) | E44: =C44*E40 -> 0 | F44: =C44*F40 -> 0 | G44: Order Value

Sheet Labour Minute Value Macedonia
B2: Labour Minute and Product Cost Calcultor North-Macedonia
B4: Exchange rate MKD - € (change to actual) | E4: Current Minimum Wage (Net) | H4: Wage Benchmark (Net) (new NMW, CBA, or LW) | K4: Actual OT Hours per week | N4: Total number of workers
B5: ='Factory Input Fields'!C10 -> 61.49 | E5: ='Factory Input Fields'!C36 -> 14500 | H5: ='Factory Input Fields'!C37 -> 32671 | K5: ='Factory Input Fields'!C19 -> 0 | N5: ='Factory Input Fields'!C12 -> 0
B8: Wage Item | E8: Current NMW | H8: New Wage Benchmark | K8: Explanatory Notes
E9: Regular working hours (40h) | F9: Overtime hours | H9: Regular working hours (40) | I9: Overtime hours
B10: Legal Minimum Wage (Pay for time worked) | C10: Basic Wage Gross paid by Employer | E10: ='Nett Gross Calculation'!F4 -> 21106.69333 | H10: ='Nett Gross Calculation'!F10 -> 49148.07958 | K10: Employee take home pay "current Minimum Wage" + pay roll taxes:PIO 18.4%, Health Insurance 7.4%, Employment contribution 1.2%, Injury & occupational disease insuranc 0.5%, Tax base for calculation of personal income tax with 10% (for a tax base below 90,000 MKD) = Contracted Wage Employee Gross Salary
C11: OT Wage | F11: =E10/4.33/40*1.35*K5*4.33 -> 0 | I11: =H10/4.33/40*1.35*K5*4.33 -> 0 | K11: Maximum OT / week is 8h @135% extra pay = 8h x 4.33 = 34.4h / month
C12: SubTOTAL 1 | E12: =E10+E11 -> 21106.69333 | F12: =F11 -> 0 | H12: =H11+H10 -> 49148.07958 | I12: =I11 -> 0
B13: Directly Paid Benefits | C13: K15 Bonus for Annual Holliday | E13: =IFERROR(Q13/N5/12,0) -> 0 | H13: =IFERROR(Q13/N5/12,0) -> 0 | K13: Total amount of K15 Bonus paid in MKD per YEAR. K15 Annual Bonus for Holliday (in 2018 MKD 9.610). This bonus should be 40% of the average net wage of the last 3 month of the year. | Q13: ='Factory Input Fields'!C24 -> 0
C14: 13th salary payments due to OT regulation | E14: =IFERROR(Q14/N5/12,0) -> 0 | H14: =IFERROR(Q14/N5/12,0) -> 0 | K14: Total amount of 13th salaries you paid for OT in the previous year. By labour Macedonian labour law, if a workers total OT hous exeeds 150h/year the employer need to pay a 13th Salary as a bonus. | Q14: ='Factory Input Fields'!C25 -> 0
C15: Attendance bonus | E15: =IFERROR(Q15/$N$5,0) -> 0 | H15: =IFERROR(Q15/N5,0) -> 0 | K15: Total amount paid in productivity bonuses in MKD per MONTH. | Q15: ='Factory Input Fields'!C26 -> 0
C16: Productivity Bonus | E16: =IFERROR(Q16/$N$5,0) -> 0 | H16: =IFERROR(Q16/$N$5,0) -> 0 | K16: Total amount paid in attendance bonuses in MKD per MONTH. | Q16: ='Factory Input Fields'!C27 -> 0
C17: Seniority Bonus | E17: =IFERROR(Q17/$N$5,0) -> 0 | H17: =IFERROR(Q17/$N$5,0) -> 0 | K17: Total amount paid in seniority bonuses in MKD per MONTH. | Q17: ='Factory Input Fields'!C28 -> 0
C18: Skills Bonus | E18: =IFERROR(Q18/$N$5,0) -> 0 | H18: =IFERROR(Q18/$N$5,0) -> 0 | K18: Total amount paid in skills bonuses in MKD per MONTH. | Q18: ='Factory Input Fields'!C29 -> 0
C19: Any other Bonuses | E19: =IFERROR(Q19/$N$5,0) -> 0 | H19: =IFERROR(Q19/$N$5,0) -> 0 | K19: Total amount paid in additional bonuses in MKD per MONTH. | Q19: ='Factory Input Fields'!C30 -> 0
C20: SubTOTAL 2 | E20: =SUM(E13:E19) -> 0 | F20: =SUM(F13:F19) -> 0 | H20: =SUM(H13:H19) -> 0 | I20: =SUM(I13:I19) -> 0
B21: Employer labour related on-cost | C21: Maternity leave / benefit | E21: =IFERROR(Q21/N5/12,0) -> 0 | H21: =IFERROR(Q21/N5/12,0) -> 0 | K21: Total amount in maternity benefits paid in MKD per YEAR. As per law, workers are entitled to 8 weeks before and 8 weeks after birth. | Q21: ='Factory Input Fields'!C32 -> 0
C22: Severence Pay | E22: =IFERROR(Q22/N5/12,0) -> 0 | H22: =IFERROR(Q22/N5/12,0) -> 0 | K22: Total amount paid in severence pay in MKD per YEAR. | Q22: ='Factory Input Fields'!C33 -> 0
C23: Additional employer labour related on-costs | E23: =IFERROR(Q23/N5/12,0) -> 0 | H23: =IFERROR(Q23/N5/12,0) -> 0 | K23: Total amount paid in any additional labour related on-costs paid in MKD per YEAR. | Q23: ='Factory Input Fields'!C34 -> 0
C24: SubTOTAL 3 | E24: =SUM(E21:E23) -> 0 | F24: =SUM(F21:F23) -> 0 | H24: =SUM(H21:H23) -> 0
B25: TOTAL Labour cost per worker in MKD | E25: =E24+E20+E12 -> 21106.69333 | F25: =F24+F20+F12 -> 0 | H25: =H24+H20+H12 -> 49148.07958 | I25: =I24+I20+I12 -> 0
B26: Monthly capacity minutes | E26: =40*4.33*60-('Factory Input Fields'!C17/12*8*60) -> 8952 | F26: ='Factory Input Fields'!C19*4.33*60-(('Factory Input Fields'!C17/12*'Factory Input Fields'!C19/6)*60) -> 0 | H26: =E26 -> 8952 | I26: =F26 -> 0 | K26: Regular working time: 40h/week x 4.33 x 60min Overtime: Actual OT/week x 4.33 x 60min
B27: Labour Minute Value MKD (row 27/28) | E27: =E25/E26 -> 2.357762884 | F27: =IFERROR(F25/F26,0) -> 0 | H27: =H25/H26 -> 5.490178684 | I27: =IFERROR(I25/I26,0) -> 0
B28: Monthly Labour Cost incl. OT in MKD (sum row 27) | E28: =E25+F25 -> 21106.69333 | H28: =H25+I25 -> 49148.07958
B29: Monthly capacity minutes incl. OT (sum row 28) | E29: =E26+F26 -> 8952 | H29: =H26+I26 -> 8952
B30: Labour minute Value MKD incl. OT (row 30/31) | E30: =E28/E29 -> 2.357762884 | H30: =H28/H29 -> 5.490178684
B31: Labour Minute Value € incl. OT | E31: =E30/$B$5 -> 0.03834384263 | H31: =H30/$B$5 -> 0.08928571612

Sheet Nett Gross Calculation
B2: NET >>> Gross of prevailing Minimum Wage
B3: Net Salary | C3: Tax Discharge Amount | D3: P. Tax (%) | E3: P. Tax (MKD) | F3: Gross Salary (MKD)
B4: ='Labour Minute Value Macedonia'!E5 -> 14500 | C4: 8228 | D4: 0.1111 | E4: =(B4-C4)*D4 -> 696.8192 | F4: =(B4+E4)/72*100 -> 21106.69333
B5: enter▲ | C5: enter▲ | D5: X | E5: X | F5: X
B8: NET >>> Gross of Wage Benchmark
B9: Net Salary | C9: Tax Discharge Amount | D9: P. Tax (%) | E9: P. Tax (MKD) | F9: Gross Salary (MKD)
B10: ='Labour Minute Value Macedonia'!H5 -> 32671 | C10: 8228 | D10: 0.1111 | E10: =(B10-C10)*D10 -> 2715.6173 | F10: =(B10+E10)/72*100 -> 49148.07958
B11: enter▲ | C11: enter▲ | D11: X | E11: X | F11: X
